bitfinex/quotes_SOLUSD_20240624
["timestamp","ask_amount","ask_price","bid_price","bid_amount"]
[1719248995342,7.7851,128.46,128.34,46.86]
[1719248995552,19.4571,128.49,128.32,30.65]
[1719248995747,7.7834,128.48,128.32,38.4428]
[1719248995937,7.7828,128.49,128.33,54.6523]
[1719248996249,7.7834,128.48,128.33,46.86]
[1719248996449,0.17,128.5,128.33,46.86]
[1719248996450,7.7841,128.47,128.33,46.86]
[1719248996631,19.4557,128.5,128.33,46.86]
[1719248996948,0.34,128.49,128.33,46.86]
[1719248997328,7.7846,128.46,128.33,46.86]
[1719248997943,7.7858,128.44,128.31,53.3428]
[1719248998151,0.17,128.45,128.31,53.3428]
[1719248998362,7.7869,128.42,128.31,6.4828]
[1719248998564,6.1744,128.43,128.28,15.4969]
[1719248998776,0.17,128.42,128.28,15.4969]
[1719248999062,7.7876,128.41,128.28,15.4969]
[1719248999463,0.17,128.42,128.27,25.7639]
[1719248999668,0.17,128.42,128.27,6.2989]
[1719248999837,7.7902,128.37,128.27,6.2989]
[1719249000037,7.7898,128.38,128.27,6.2989]
[1719249000233,7.7897,128.38,128.27,6.2989]
[1719249000437,0.17,128.39,128.23,15.3404]
[1719249000669,7.791,128.36,128.23,15.3404]
[1719249000864,7.7927,128.33,128.22,19.4696]
[1719249001163,7.7927,128.33,128.18,404.7198]
[1719249001164,0.17,128.32,128.18,6.5184]
[1719249001365,0.17,128.32,128.19,7.7927]
[1719249001565,7.9631,128.32,128.19,7.7927]
[1719249001869,7.7949,128.29,128.18,6.5184]
[1719249002034,7.7961,128.27,128.17,7.9631]
[1719249002257,7.796,128.28,128.17,7.9631]
[1719249002468,19.6552,128.31,128.14,6.1677]
[1719249002652,0.17,128.3,128.14,6.1677]
[1719249002857,7.7975,128.25,128.14,6.1677]
[1719249003053,0.17,128.26,128.1,30.65]
[1719249003285,0.34,128.26,128.1,30.65]
[1719249003672,8.1368,128.26,128.1,38.4562]
[1719249003866,0.34,128.26,128.1,30.65]
[1719249004082,0.34,128.26,128.09,6.5149]
[1719249004083,6.2219,128.25,128.09,6.5149]
[1719249004266,7.7997,128.21,128.09,6.5149]
[1719249004472,0.34,128.24,128.09,6.5149]
[1719249004781,50.4854,128.24,128.09,6.5149]
[1719249004984,30.99,128.24,128.09,6.5149]
[1719249005167,30.99,128.24,128.04,36.8694]
[1719249005482,30.99,128.24,128.04,6.2194]
[1719249005483,16.0469,128.22,128.04,6.2194]
[1719249005782,16.0469,128.22,128.05,19.5227]
[1719249005783,0.17,128.21,128.05,19.5227]
[1719249005977,0.17,128.21,128.06,7.8087]
[1719249006164,0.17,128.21,128.05,27.3321]
[1719249006360,16.0469,128.22,128.05,19.5227]
[1719249006568,16.0469,128.22,128.05,16.0469]
[1719249006762,16.0469,128.22,128.04,6.2194]
[1719249006763,7.8028,128.16,128.04,6.2194]
[1719249006984,30.65,128.2,128.04,6.2194]
[1719249007295,0.34,128.19,128.04,6.2194]
[1719249007472,7.9698,128.21,128.04,6.2194]
[1719249007778,0.17,128.2,128.05,19.5226]
[1719249008086,23.846,128.22,128.05,27.3315]
[1719249008272,7.7984,128.24,128.07,7.8081]
[1719249008470,6.2219,128.25,128.06,27.8087]
[1719249008681,56.4941,128.28,128.08,77.51]
[1719249008682,46.4941,128.28,128.08,77.51]
[1719249008882,30.65,128.27,128.05,16.0469]
[1719249009087,7.8017,128.18,128.05,16.0469]
[1719249009266,6.5775,128.2,128.04,6.2194]
[1719249009669,7.8034,128.15,128.04,6.2194]
[1719249009887,7.8028,128.16,128.04,6.2194]
[1719249010185,7.8047,128.13,128.01,16.1723]
[1719249010365,0.17,128.12,128.01,16.1723]
[1719249010569,0.17,128.14,128.01,16.1723]
[1719249010770,8.1442,128.14,128.01,16.1723]
[1719249011180,0.34,128.14,128.01,16.1723]
[1719249011486,7.8058,128.11,128.01,16.1723]
[1719249011691,7.8058,128.11,127.99,6.6633]
[1719249011869,0.17,128.12,127.99,6.6633]
[1719249012066,0.17,128.14,127.99,6.6633]
[1719249012574,7.8053,128.12,127.99,6.6633]
[1719249012783,0.17,128.11,127.99,6.6633]
[1719249012964,0.34,128.11,127.97,8.14504387]
[1719249013175,7.8081,128.08,127.95,15.7934]
[1719249013490,0.17,128.07,127.94,14.4617]
[1719249013789,19.6887,128.09,127.94,6.6564]
[1719249014090,7.8106,128.03,127.89,6.5366]
[1719249014268,0.34,128.02,127.89,6.5366]
[1719249014588,0.34,128.02,127.84,6.5366]
[1719249014796,7.815,127.96,127.84,6.5366]
[1719249014965,30.65,127.99,127.84,6.5366]
[1719249015168,0.34,127.98,127.84,6.5366]
[1719249015586,7.816,127.95,127.84,6.5366]
[1719249015891,0.34,127.94,127.78,6.0095]
[1719249016092,7.8185,127.91,127.78,6.0095]
[1719249016263,7.8192,127.89,127.74,6.0095]
[1719249016574,39.0749,127.96,127.74,6.0095]
[1719249016575,10.0,128.03,127.76,30.65]
[1719249016773,0.34,127.98,127.76,30.65]
[1719249016973,0.34,127.98,127.78,7.8258]
[1719249016974,7.8159,127.95,127.78,7.8258]
[1719249017191,0.34,127.94,127.76,19.5675]
[1719249017379,7.818,127.91,127.75,15.6782]
[1719249017704,0.34,127.9,127.74,36.6595]
[1719249017886,7.8192,127.89,127.75,20.0]
[1719249018076,0.34,127.88,127.74,36.6595]
[1719249018277,7.8193,127.89,127.74,36.6595]
[1719249018483,0.17,127.88,127.74,36.6595]
[1719249018689,0.17,127.89,127.74,36.6595]
[1719249018996,7.9892,127.89,127.74,36.6595]
[1719249019199,0.17,127.89,127.74,36.6595]
[1719249019404,0.17,127.89,127.74,6.0095]
[1719249019784,7.8199,127.88,127.74,6.0095]
[1719249020112,7.8209,127.87,127.74,6.0095]
[1719249020403,7.8209,127.87,127.68,429.17590974]
[1719249020404,7.8236,127.82,127.69,6.5837]
[1719249020712,50.2023,127.87,127.7,7.8308]
[1719249020713,7.8205,127.87,127.7,7.8308]
[1719249021006,52.3812,127.9,127.69,6.5837]
[1719249021007,7.9912,127.86,127.69,6.5837]
[1719249021201,7.8205,127.87,127.7,19.5762]
[1719249021393,0.17,127.86,127.7,19.5762]
[1719249021587,60.2003,127.9,127.72,19.5731]
[1719249021792,7.8202,127.88,127.72,19.5731]
[1719249022014,52.3812,127.9,127.73,20.0]
[1719249022307,52.3812,127.9,127.69,6.5837]
[1719249022308,10.0,127.86,127.69,6.5837]
[1719249022510,30.65,127.86,127.69,6.5837]
[1719249022674,7.8254,127.79,127.69,6.5837]
[1719249022880,0.17,127.8,127.66,15.0029]
[1719249023192,8.165,127.8,127.66,15.0029]
[1719249023509,6.1093,127.79,127.64,6.2483]
[1719249023801,0.34,127.8,127.64,6.2483]
[1719249024003,0.17,127.8,127.64,56.46]
[1719249024183,0.17,127.81,127.67,7.8321]
[1719249024385,0.34,127.82,127.65,19.584]
[1719249024582,7.9929,127.83,127.67,7.8325]
[1719249024793,6.17,127.84,127.68,16.492]
[1719249025188,7.823,127.83,127.69,0.17]
[1719249025418,7.823,127.83,127.69,20.0]
[1719249025717,6.17,127.84,127.69,20.0]
[1719249026015,13.9923,127.84,127.69,20.0]
[1719249026211,13.9923,127.84,127.7,0.34]
[1719249026420,6.1821,127.89,127.7,0.34]
[1719249026607,6.1821,127.89,127.72,30.65]
[1719249026906,6.1821,127.89,127.73,39.9119]
[1719249027113,6.1821,127.89,127.73,20.34]
[1719249027303,6.1821,127.89,127.71,6.2328]
[1719249027514,6.1821,127.89,127.72,20.0]
[1719249027515,7.822,127.85,127.72,20.0]
[1719249027696,7.8202,127.88,127.72,27.8293]
[1719249027900,6.1821,127.89,127.73,0.17]
[1719249028089,6.1821,127.89,127.72,20.0]
[1719249028498,7.8225,127.84,127.72,20.0]
[1719249028707,7.8225,127.84,127.71,6.4028]
[1719249028708,6.1821,127.89,127.71,6.4028]
[1719249028908,6.1821,127.89,127.72,39.7433]
[1719249029213,6.1821,127.89,127.73,0.17]
[1719249029513,7.821,127.87,127.72,20.0]
[1719249029712,7.821,127.87,127.73,0.17]
[1719249029892,6.1821,127.89,127.73,0.17]
[1719249030096,4.30127988,127.9,127.77,7.8264]
[1719249030295,4.30127988,127.9,127.78,20.0]
[1719249030513,4.30127988,127.9,127.75,15.9856]
[1719249030700,25.7932,127.94,127.75,15.9856]
[1719249030906,7.8168,127.93,127.77,13.861]
[1719249031207,7.8175,127.92,127.78,20.34]
[1719249031420,6.2521,127.94,127.78,20.17]
[1719249031726,7.8182,127.91,127.78,20.17]
[1719249031897,19.5425,127.93,127.77,6.0346]
[1719249032235,36.9021,127.94,127.78,0.17]
[1719249032397,6.2521,127.94,127.78,0.17]
[1719249032801,7.8172,127.93,127.78,20.17]
[1719249033101,7.8172,127.93,127.77,13.8611]
[1719249033102,30.65,127.91,127.77,6.0346]
[1719249033498,7.8187,127.9,127.77,6.0346]
[1719249033931,7.8205,127.87,127.77,6.0346]
[1719249034097,0.17,127.86,127.77,6.0346]
[1719249034301,0.34,127.89,127.72,6.2516]
[1719249034498,7.8231,127.83,127.72,6.2516]
[1719249034719,0.34,127.82,127.67,6.2516]
[1719249034910,7.8272,127.76,127.67,6.2516]
[1719249035119,0.17,127.75,127.67,6.2516]
[1719249035321,7.8276,127.76,127.67,6.2516]
[1719249035526,19.5613,127.81,127.67,6.2516]
[1719249035830,0.34,127.8,127.67,6.2516]
[1719249036133,30.99,127.8,127.64,16.5792]
[1719249036335,7.8266,127.77,127.64,16.5792]
[1719249036502,0.17,127.76,127.64,16.5792]
[1719249036701,30.99,127.8,127.64,16.5792]
[1719249036928,50.5525,127.8,127.64,16.5792]
[1719249037424,50.5525,127.8,127.6,8.13983695]
[1719249037425,22.6683,127.79,127.6,8.13983695]
[1719249037728,7.8277,127.76,127.59,33.9475]
[1719249037908,7.8284,127.74,127.59,6.5162]
[1719249038105,24.76604033,127.79,127.59,6.5162]
[1719249038315,2.09774033,127.79,127.64,6.5162]
[1719249038537,6.2574,127.83,127.65,15.842]
[1719249038705,6.2574,127.83,127.66,0.17]
[1719249038706,7.8253,127.79,127.66,0.17]
[1719249038907,6.2574,127.83,127.66,0.17]
[1719249039214,32.74665839,127.82,127.65,15.842]
[1719249039406,42.74665839,127.82,127.65,15.842]
[1719249039733,19.5657,127.78,127.65,15.842]
[1719249039914,58.6815,127.81,127.65,15.842]
[1719249040104,0.17,127.8,127.64,6.5162]
[1719249040329,7.8304,127.71,127.64,6.5162]
[1719249040529,0.34,127.7,127.57,21.7194]
[1719249040721,40.65,127.78,127.57,21.7194]
[1719249040722,19.5673,127.77,127.57,21.7194]
[1719249041029,7.8279,127.75,127.59,27.4308]
[1719249041214,7.83,127.72,127.57,420.26602269]
[1719249041404,0.34,127.71,127.57,29.86602269]
[1719249041602,0.17,127.7,127.57,21.7194]
[1719249042005,0.17,127.71,127.57,21.7194]
[1719249042228,0.34,127.71,127.58,20.0]
[1719249042430,7.831,127.7,127.58,20.0]
[1719249042636,0.34,127.71,127.58,20.0]
[1719249042821,7.8292,127.73,127.58,20.0]
[1719249043012,6.3318,127.75,127.58,20.0]
[1719249043209,7.8314,127.69,127.58,20.0]
[1719249043513,7.8315,127.69,127.58,20.0]
[1719249043706,7.83,127.72,127.58,20.0]
[1719249043908,8.0007,127.71,127.59,0.17]
[1719249044232,7.8307,127.71,127.59,0.17]
[1719249044538,6.3318,127.75,127.59,0.17]
[1719249044835,30.65,127.68,127.56,8.14692732]
[1719249045135,19.5843,127.66,127.47,26.0393]
[1719249045326,34.74860703,127.68,127.51,6.4274]
[1719249045638,7.8333,127.66,127.51,6.4274]
[1719249045831,0.17,127.67,127.46,23.6119086]
[1719249045832,52.6196,127.65,127.46,23.6119086]
[1719249046132,52.6196,127.65,127.44,6.1659]
[1719249046133,0.17,127.64,127.47,53.1502]
[1719249046313,0.17,127.64,127.47,22.5002]
[1719249046707,21.7996,127.63,127.44,8.15363876]
[1719249046909,21.7996,127.63,127.44,24.48793876]
[1719249046910,7.8382,127.58,127.44,24.48793876]
[1719249047140,30.82,127.62,127.44,16.3343]
[1719249047141,30.99,127.62,127.44,16.3343]
[1719249047330,19.5933,127.6,127.44,16.3343]
[1719249047632,7.8363,127.62,127.46,7.845]
[1719249047938,6.5484,127.6,127.38,37.2826]
[1719249048127,7.842,127.52,127.38,6.6326]
[1719249048464,7.842,127.52,127.36,15.877]
[1719249048465,7.8439,127.49,127.36,15.877]
[1719249048738,7.8438,127.49,127.36,15.877]
[1719249049035,19.6063,127.51,127.36,15.877]
[1719249049230,0.34,127.5,127.36,15.877]
[1719249049441,7.8449,127.47,127.36,15.877]
[1719249049612,30.65,127.53,127.36,15.877]
[1719249049814,0.34,127.52,127.36,15.877]
[1719249050111,19.6063,127.51,127.36,15.877]
[1719249050310,0.34,127.52,127.36,15.877]
[1719249050530,0.34,127.52,127.36,23.7287]
[1719249050531,0.17,127.52,127.36,23.7287]
[1719249050730,19.5974,127.57,127.37,6.4762]
[1719249050917,7.8412,127.54,127.38,7.8501]
[1719249051119,7.8412,127.54,127.37,73.1635]
[1719249051120,7.8407,127.54,127.37,33.9545]
[1719249051318,19.6017,127.54,127.38,20.0]
[1719249051525,7.8433,127.5,127.39,0.34]
[1719249051728,7.8431,127.51,127.39,0.17]
[1719249051933,27.74641289,127.57,127.39,0.17]
[1719249052227,19.5972,127.57,127.39,0.17]
[1719249052439,19.6011,127.55,127.39,0.17]
[1719249052619,0.34,127.54,127.37,6.4762]
[1719249052817,7.845,127.47,127.37,6.4762]
[1719249053010,19.6103,127.49,127.31,6.1745]
[1719249053207,0.34,127.48,127.31,6.1745]
[1719249053412,7.8469,127.44,127.31,6.1745]
[1719249053630,0.34,127.48,127.31,6.1745]
[1719249053808,30.65,127.46,127.31,6.1745]
[1719249054011,7.847,127.44,127.31,6.1745]
[1719249054235,0.34,127.45,127.31,6.1745]
[1719249054411,7.8486,127.42,127.31,6.1745]
[1719249054610,0.17,127.43,127.31,6.1745]
[1719249054825,19.9566,127.45,127.31,6.1745]
[1719249055443,76.3197,127.5,127.31,6.1745]
[1719249055649,7.848,127.43,127.31,6.1745]
[1719249055824,19.6147,127.46,127.31,6.1745]
[1719249056022,7.8508,127.38,127.31,6.1745]
[1719249056243,30.65,127.43,127.29,16.4596]
[1719249056450,30.65,127.43,127.28,8.15905836]
[1719249056451,7.8522,127.36,127.28,8.15905836]
[1719249056749,8.0212,127.37,127.27,6.0034]
[1719249056931,0.17,127.38,127.27,6.0034]
[1719249057133,8.0217,127.36,127.27,6.0034]
[1719249057328,0.17,127.36,127.27,6.0034]
[1719249058250,0.17,127.37,127.23,21.7475]
[1719249058441,7.8539,127.33,127.23,21.7475]
[1719249058642,0.34,127.34,127.23,21.7475]
[1719249058946,7.8547,127.32,127.23,6.0141]
[1719249059148,0.17,127.34,127.23,6.0141]
[1719249059327,7.8543,127.32,127.23,6.0141]
[1719249059527,0.17,127.31,127.23,6.0141]
[1719249060132,0.17,127.31,127.18,15.3255]
[1719249060334,39.253,127.38,127.18,15.3255]
[1719249060554,6.6625,127.42,127.23,6.5333]
[1719249060855,7.8464,127.45,127.3,6.5333]
[1719249061061,16.3476,127.48,127.31,16.5688]
[1719249061249,7.85,127.39,127.31,16.5688]
[1719249061453,6.1447,127.42,127.25,6.0229]
[1719249061652,7.855,127.31,127.25,6.0229]
[1719249061955,30.65,127.39,127.25,6.0229]
[1719249061956,7.8506,127.38,127.25,6.0229]
[1719249062129,30.65,127.39,127.25,6.0229]
[1719249062130,7.853,127.34,127.25,6.0229]
[1719249062333,50.2758,127.39,127.25,6.0229]
[1719249062535,7.8535,127.34,127.25,6.0229]
[1719249062731,7.8535,127.34,127.16,8.15939153]
[1719249062732,0.17,127.33,127.16,8.15939153]
[1719249062934,0.17,127.33,127.17,21.4633]
[1719249062935,19.8054,127.33,127.17,21.4633]
[1719249063148,0.17,127.33,127.17,21.4633]
[1719249063332,0.17,127.34,127.17,21.4633]
[1719249063531,7.8617,127.2,127.04,7.8714]
[1719249063744,30.65,127.26,127.04,30.65]
[1719249063745,19.6466,127.25,127.04,30.65]
[1719249063941,0.34,127.24,127.04,30.65]
[1719249064143,0.34,127.24,127.04,77.71]
[1719249064342,8.1992,127.24,127.07,6.185]
[1719249064548,19.6505,127.23,127.07,6.185]
[1719249064754,0.34,127.22,127.07,6.185]
[1719249064964,7.863,127.18,127.07,6.185]
[1719249065143,0.17,127.19,127.07,6.185]
[1719249065347,7.8665,127.13,127.02,15.1655]
[1719249065643,22.8753,127.22,127.02,15.1655]
[1719249065644,0.17,127.12,127.02,15.1655]
[1719249065847,0.17,127.12,127.01,6.2299]
[1719249065848,0.17,127.11,127.01,6.2299]
[1719249066161,0.17,127.11,126.97,15.016]
[1719249066364,0.17,127.12,126.97,15.016]
[1719249066365,0.34,127.12,126.97,15.016]
[1719249067139,0.17,127.12,126.97,15.016]
[1719249067530,30.96,127.19,126.98,6.019]
[1719249067763,30.96,127.26,127.05,7.8706]
[1719249067962,6.4535,127.27,127.06,30.96]
[1719249068254,6.4535,127.27,127.04,30.96]
[1719249068463,7.8611,127.21,127.05,7.8708]
[1719249068666,7.8619,127.2,127.06,20.34]
[1719249068859,19.647,127.25,127.07,20.0]
[1719249069062,19.647,127.25,127.08,0.34]
[1719249069250,19.647,127.25,127.08,0.17]
[1719249069555,15.3522,127.31,127.08,0.17]
[1719249069762,30.96,127.38,126.9,30.65]
[1719249069763,21.7909,127.08,126.9,30.65]
[1719249069973,15.3522,127.14,126.93,6.4319]
[1719249070260,30.96,127.19,126.99,6.0909]
[1719249070460,30.96,127.26,126.99,6.0909]
[1719249070461,19.6498,127.23,126.99,6.0909]
[1719249070643,7.866,127.13,126.99,6.0909]
[1719249070832,0.17,127.12,126.99,6.0909]
[1719249071038,19.6553,127.2,126.99,6.0909]
[1719249071039,30.96,127.18,126.99,6.0909]
[1719249071239,7.8661,127.13,126.99,6.0909]
[1719249071439,0.17,127.12,127.0,0.17]
[1719249071655,7.8657,127.14,127.0,0.17]
[1719249071946,7.8686,127.09,126.99,6.0909]
[1719249072264,0.17,127.08,126.99,6.0909]
[1719249072737,39.12088525,127.14,126.99,6.0909]
[1719249072938,8.16088525,127.14,127.03,30.96]
[1719249073138,30.96,127.25,127.04,16.6647]
[1719249073370,10.0,127.22,127.04,16.6647]
[1719249073535,47.44336619,127.23,127.04,16.6647]
[1719249073740,7.8662,127.13,127.04,16.6647]
[1719249073952,7.8648,127.15,127.04,16.6647]
[1719249074150,7.8633,127.18,127.04,16.6647]
[1719249074462,7.8644,127.16,127.04,16.6647]
[1719249074663,50.6135,127.21,127.04,16.6647]
[1719249074664,7.8632,127.18,127.05,0.17]
[1719249074962,7.8635,127.17,127.05,20.17]
[1719249075168,7.8635,127.17,126.99,13.9653]
[1719249075169,7.8696,127.08,126.99,6.0909]
[1719249075375,70.2748,127.18,126.99,6.0909]
[1719249075669,30.96,127.21,126.99,6.0909]
[1719249076161,7.8651,127.15,126.99,6.0909]
[1719249076365,30.96,127.21,126.99,6.0909]
[1719249076541,19.6565,127.19,126.99,6.0909]
[1719249076736,19.6565,127.19,127.0,20.17]
[1719249078243,19.6565,127.19,127.0,20.0]
[1719249078443,19.6565,127.19,127.01,0.34]
[1719249078674,30.96,127.21,127.01,0.34]
[1719249078675,7.8635,127.17,127.01,0.34]
[1719249078959,7.8641,127.16,127.01,0.34]
[1719249079162,20.0,127.19,127.01,0.34]
[1719249079858,20.0,127.19,127.02,30.96]
[1719249080055,30.96,127.17,126.99,6.0909]
[1719249080245,19.6652,127.13,126.99,6.0909]
[1719249080462,7.8678,127.1,126.99,6.0909]
[1719249080767,0.17,127.12,126.99,6.0909]
[1719249081166,50.6194,127.17,126.99,6.0909]
[1719249081366,7.8669,127.12,126.99,6.0909]
[1719249081557,0.17,127.16,126.99,6.0909]
[1719249081749,7.8648,127.15,126.99,13.9654]
[1719249081946,8.0353,127.14,126.99,6.0909]
[1719249082175,7.8645,127.16,127.0,20.0]
[1719249082479,20.0,127.19,127.0,50.96]
[1719249082644,7.8653,127.15,127.0,50.96]
[1719249082844,59.3134,127.19,126.99,6.0909]
[1719249083059,10.0,127.16,126.99,6.0909]
[1719249083252,2.09774033,127.16,126.99,6.0909]
[1719249083649,7.8646,127.16,126.99,13.9654]
[1719249083971,59.3117,127.19,126.99,6.0909]
[1719249084143,30.96,127.14,126.99,6.0909]
[1719249084351,7.8687,127.09,127.0,20.0]
[1719249084574,7.8687,127.09,126.99,6.0909]
[1719249084777,7.8703,127.06,126.99,6.0909]
[1719249084978,30.96,127.14,126.99,6.0909]
[1719249084979,7.8709,127.05,126.99,6.0909]
[1719249085165,8.2116,127.04,126.99,6.0909]
[1719249085359,0.17,127.04,126.99,6.0909]
[1719249085573,30.96,127.1,126.99,6.0909]
[1719249085785,0.34,127.09,126.99,6.0909]
[1719249085993,7.8709,127.05,126.99,6.0909]
[1719249086171,0.34,127.04,126.99,6.0909]
[1719249086355,0.17,127.03,126.99,6.0909]
[1719249086677,0.17,127.04,126.87,6.5324]
[1719249086678,30.96,127.02,126.87,6.5324]
[1719249086986,7.8747,126.99,126.87,6.5324]
[1719249087154,0.34,126.98,126.87,6.5324]
[1719249087859,8.0463,126.97,126.87,6.5324]
[1719249088062,7.8752,126.98,126.87,6.5324]
[1719249088270,0.17,126.96,126.87,6.5324]
[1719249088855,20.0311,126.97,126.87,6.5324]
[1719249089177,7.8827,126.86,126.81,6.4806]
[1719249089396,39.3828,126.96,126.76,16.0645]
[1719249089397,0.17,126.85,126.77,8.15262278]
[1719249089573,30.96,126.92,126.75,6.4806]
[1719249089759,0.17,126.91,126.75,6.4806]
[1719249089951,19.7018,126.9,126.75,6.4806]
[1719249090170,30.96,126.88,126.75,6.4806]
[1719249090479,7.8833,126.86,126.75,6.4806]
[1719249090685,0.34,126.87,126.75,6.4806]
[1719249090871,7.883,126.86,126.75,6.4806]
[1719249091059,0.34,126.85,126.75,6.4806]
[1719249091259,0.34,126.87,126.75,6.4806]
[1719249091457,7.8875,126.79,126.69,6.252]
[1719249091652,0.17,126.78,126.69,6.252]
[1719249091872,7.8859,126.81,126.69,6.252]
[1719249092074,7.8849,126.83,126.69,6.252]
[1719249092289,50.6607,126.9,126.69,6.252]
[1719249092502,0.17,126.89,126.71,19.7291]
[1719249092667,7.8818,126.88,126.71,19.7291]
[1719249092867,0.34,126.87,126.72,7.8912]
[1719249093093,0.34,126.87,126.71,19.7291]
[1719249093284,30.96,126.86,126.69,6.252]
[1719249093503,30.96,126.82,126.69,6.252]
[1719249093673,19.8848,126.81,126.6,36.0369]
[1719249093875,30.96,126.78,126.6,16.2898]
[1719249094166,0.17,126.77,126.6,16.2898]
[1719249094381,8.52301372,126.77,126.6,16.2898]
[1719249095083,7.8896,126.75,126.6,16.2898]
[1719249095280,0.34,126.74,126.6,16.2898]
[1719249095485,0.17,126.74,126.6,24.188]
[1719249095797,0.17,126.74,126.6,24.1884]
[1719249095984,0.34,126.75,126.6,36.0356]
[1719249096192,0.17,126.74,126.6,16.2898]
[1719249096393,0.17,126.76,126.6,24.1881]
[1719249096707,8.35301372,126.77,126.62,7.8976]
[1719249096708,8.18301372,126.77,126.62,7.8976]
[1719249096904,10.0,126.83,126.65,7.8956]
[1719249097195,30.96,126.84,126.67,6.282]
[1719249097196,8.17947914,126.82,126.67,6.282]
[1719249097395,30.96,126.84,126.68,20.34]
[1719249097595,30.96,126.8,126.68,20.0]
[1719249097781,30.96,126.8,126.64,6.282]
[1719249097991,30.96,126.76,126.64,6.282]
[1719249098597,7.8896,126.75,126.64,6.282]
[1719249098801,0.17,126.74,126.64,6.282]
[1719249099106,0.34,126.75,126.64,6.282]
[1719249099615,8.2295,126.75,126.64,6.282]
[1719249099774,30.96,126.76,126.64,6.282]
[1719249101077,0.17,126.75,126.64,6.282]
[1719249101283,0.34,126.75,126.64,6.282]
[1719249101717,0.34,126.75,126.54,33.94704941]
[1719249101718,19.7264,126.74,126.54,33.94704941]
[1719249101877,7.8964,126.64,126.54,6.0322]
[1719249102077,38.8545,126.67,126.54,6.0322]
[1719249102277,7.8992,126.6,126.46,8.18681383]
[1719249102483,30.96,126.55,126.46,8.18681383]
[1719249102795,30.96,126.55,126.41,15.6513]
[1719249102796,7.9026,126.55,126.41,15.6513]
[1719249103104,0.17,126.59,126.47,7.9069]
[1719249103284,30.96,126.64,126.41,54.79665136]
[1719249103481,30.96,126.64,126.41,56.6113]
[1719249103681,61.92,126.72,126.51,7.9039]
[1719249103918,30.96,126.72,126.5,6.3626]
[1719249104087,38.8539,126.68,126.5,6.3626]
[1719249104292,30.96,126.62,126.5,6.3626]
[1719249104588,7.8996,126.59,126.5,6.3626]
[1719249104896,7.9022,126.55,126.42,6.3626]
[1719249105097,19.752,126.57,126.42,6.3626]
[1719249105289,30.96,126.54,126.36,11.34454826]
[1719249105491,0.17,126.53,126.36,11.34454826]
[1719249105688,0.34,126.53,126.36,11.34454826]
[1719249106183,19.761,126.52,126.36,6.3626]
[1719249106383,7.9062,126.49,126.36,6.3626]
[1719249106604,30.96,126.5,126.36,6.3626]
[1719249106605,0.34,126.48,126.36,6.3626]
[1719249106809,7.9033,126.53,126.36,6.3626]
[1719249106983,0.34,126.52,126.36,6.3626]